Department Family,Entity,Date Paid,Expense Type,Expenses Area,Supplier Name,Transaction Reference,Total,VAT Registration Number
Department of Health,Imperial College Healthcare NHS Trust,01/03/2012,Acton Housing Association,Housing Deductions,A2dominion Housing Group Ltd,2391358,"173,133.49",Optional requirement only
Department of Health,Imperial College Healthcare NHS Trust,28/03/2012,Acton Housing Association,Housing Deductions,A2dominion Housing Group Ltd,2412365,"171,581.00",Optional requirement only
Department of Health,Imperial College Healthcare NHS Trust,28/03/2012,Lab - Reagents/Chemicals,Clin & Investigative Sciences,Abbott Laboratories Ltd,2401734,"95,752.68",Optional requirement only
Department of Health,Imperial College Healthcare NHS Trust,28/03/2012,Lab - Reagents/Chemicals,Clin & Investigative Sciences,Abbott Laboratories Ltd,2401735,"340,285.85",Optional requirement only
Department of Health,Imperial College Healthcare NHS Trust,01/03/2012,Sundries - Non-Disposable,Medical Director - Fr Centres,Acublate Limited,2390703,"80,000.00",Optional requirement only
Department of Health,Imperial College Healthcare NHS Trust,06/03/2012,Maintenance Contracts,Clin & Investigative Sciences,Beckman Coulter Uk Ltd,2387683,"76,381.90",Optional requirement only
Department of Health,Imperial College Healthcare NHS Trust,15/03/2012,Maintenance Contracts,Clin & Investigative Sciences,Beckman Coulter Uk Ltd,2365692,"76,381.90",Optional requirement only
Department of Health,Imperial College Healthcare NHS Trust,08/03/2012,Legal Fees,Clin & Investigative Sciences,Bird & Bird Llp,2396088,"35,377.60",Optional requirement only
Department of Health,Imperial College Healthcare NHS Trust,06/03/2012,Jac - Stock,Stock,Bms Pharmaceuticals Ltd (0034),2387103,"33,638.77",Optional requirement only
Department of Health,Imperial College Healthcare NHS Trust,28/03/2012,Jac - Stock,Stock,Boehringer Ingelheim Ltd,2405181,"40,800.00",Optional requirement only
Department of Health,Imperial College Healthcare NHS Trust,15/03/2012,Defibrillators,Specialist Services 2,Boston Scientific Ltd,2394317,"50,387.15",Optional requirement only
Department of Health,Imperial College Healthcare NHS Trust,15/03/2012,Defibrillators,Specialist Services 2,Boston Scientific Ltd,2394428,"43,507.55",Optional requirement only
Department of Health,Imperial College Healthcare NHS Trust,21/03/2012,Defibrillators,Specialist Services 2,Boston Scientific Ltd,2391901,"33,516.00",Optional requirement only
Department of Health,Imperial College Healthcare NHS Trust,13/03/2012,Computers - Maintenance Softwa,Information & Comms Technology,Bt Global Services,2397806,"67,077.75",Optional requirement only
Department of Health,Imperial College Healthcare NHS Trust,13/03/2012,Computers - Maintenance Softwa,Information & Comms Technology,Bt Global Services,2398317,"67,077.75",Optional requirement only
Department of Health,Imperial College Healthcare NHS Trust,01/03/2012,P & M-Additions-Purchased,Capital Summary,Cardiac Services Ltd,2385319,"46,392.24",Optional requirement only
Department of Health,Imperial College Healthcare NHS Trust,06/03/2012,Drugs Other Authorities,Specialist Services 2,Central & North West London,2380842,"26,155.12",Optional requirement only
Department of Health,Imperial College Healthcare NHS Trust,21/03/2012,Drugs Other Authorities,Specialist Services 2,Central & North West London,2398206,"27,131.87",Optional requirement only
Department of Health,Imperial College Healthcare NHS Trust,15/03/2012,Clin Psychologist A  ,Womens And Childrens Direct'E,Central & North West London,2373698,"25,057.00",Optional requirement only
Department of Health,Imperial College Healthcare NHS Trust,21/03/2012,Miscellaneous Items,Clin & Investigative Sciences,Central London Community Healthcare Nhs Trust,2388931,"39,142.00",Optional requirement only
Department of Health,Imperial College Healthcare NHS Trust,13/03/2012,Midwifery & Nursing Band 7,Public Health & Primary Care,Central London Community Healthcare Nhs Trust,2398289,"165,937.15",Optional requirement only
Department of Health,Imperial College Healthcare NHS Trust,13/03/2012,Nurse Agency,Public Health & Primary Care,Central London Community Healthcare Nhs Trust,2398289,"64,623.00",Optional requirement only
Department of Health,Imperial College Healthcare NHS Trust,21/03/2012,C&W Path Sla Merit/Sift,Clin & Investigative Sciences,Chelsea And  Westminster Hospital Nhs,2395037,"91,720.69",Optional requirement only
Department of Health,Imperial College Healthcare NHS Trust,21/03/2012,C&W Path Sla Merit/Sift,Trust Block Income,Chelsea And  Westminster Hospital Nhs,2377302,"97,043.00",Optional requirement only
Department of Health,Imperial College Healthcare NHS Trust,21/03/2012,C&W Path Sla Merit/Sift,Trust Block Income,Chelsea And  Westminster Hospital Nhs,2380843,"194,086.00",Optional requirement only
Department of Health,Imperial College Healthcare NHS Trust,28/03/2012,Creditor Accruals Nonnhs Trade,Sm Theatres Laparoscopic Stock,Covidien (Uk) Commercial Ltd,2407586,"33,002.91",Optional requirement only
Department of Health,Imperial College Healthcare NHS Trust,08/03/2012,Chx Pharmacy Stock,Stock,Csl Behring Uk Ltd,2388676,"36,480.00",Optional requirement only
Department of Health,Imperial College Healthcare NHS Trust,23/03/2012,Chx Pharmacy Stock,Stock,Csl Behring Uk Ltd,2406394,"36,480.00",Optional requirement only
Department of Health,Imperial College Healthcare NHS Trust,28/03/2012,Hh Pharmacy Stock,Stock,Csl Behring Uk Ltd,2408204,"72,960.00",Optional requirement only
Department of Health,Imperial College Healthcare NHS Trust,28/03/2012,Buildings-Additions-Purchased,Capital Summary,Cuffe  Plc,2411912,"106,462.63",Optional requirement only
Department of Health,Imperial College Healthcare NHS Trust,06/03/2012,Rent,Estates Directorate,Derwent London Property Management 50022,2382871,"83,268.00",Optional requirement only
Department of Health,Imperial College Healthcare NHS Trust,15/03/2012,Courier Service - Pathology Contract,Clin & Investigative Sciences,Dhl (Former Excel),2387800,"82,030.00",Optional requirement only
Department of Health,Imperial College Healthcare NHS Trust,08/03/2012,Excel Logistic Contract,Estates Directorate,Dhl (Former Excel),2396248,"115,983.55",Optional requirement only
Department of Health,Imperial College Healthcare NHS Trust,08/03/2012,Excel Logistic Contract,Estates Directorate,Dhl (Former Excel),2396249,"115,983.55",Optional requirement only
Department of Health,Imperial College Healthcare NHS Trust,08/03/2012,Excel Logistic Contract,Estates Directorate,Dhl (Former Excel),2396250,"115,983.55",Optional requirement only
Department of Health,Imperial College Healthcare NHS Trust,08/03/2012,Excel Logistic Contract,Estates Directorate,Dhl (Former Excel),2396255,"115,983.55",Optional requirement only
Department of Health,Imperial College Healthcare NHS Trust,13/03/2012,Excel Logistic Contract,Estates Directorate,Dhl (Former Excel),2398521,"33,350.82",Optional requirement only
Department of Health,Imperial College Healthcare NHS Trust,13/03/2012,Excel Logistic Contract,Estates Directorate,Dhl (Former Excel),2398522,"32,274.98",Optional requirement only
Department of Health,Imperial College Healthcare NHS Trust,15/03/2012,Patient Travel - Fixed Recharg,Medicine Cpg,Dhl (Former Excel),2401340,"80,696.64",Optional requirement only
Department of Health,Imperial College Healthcare NHS Trust,08/03/2012,Minor Project,Nursing & Ops Directorate,Dhl (Former Excel),2395558,"61,380.40",Optional requirement only
Department of Health,Imperial College Healthcare NHS Trust,13/03/2012,Minor Project,Nursing & Ops Directorate,Dhl (Former Excel),2398748,"50,257.25",Optional requirement only
Department of Health,Imperial College Healthcare NHS Trust,13/03/2012,Minor Project,Nursing & Ops Directorate,Dhl (Former Excel),2398752,"50,896.79",Optional requirement only
Department of Health,Imperial College Healthcare NHS Trust,15/03/2012,Minor Project,Nursing & Ops Directorate,Dhl (Former Excel),2398520,"47,042.03",Optional requirement only
Department of Health,Imperial College Healthcare NHS Trust,28/03/2012,Minor Project,Nursing & Ops Directorate,Dhl (Former Excel),2411928,"63,719.23",Optional requirement only
Department of Health,Imperial College Healthcare NHS Trust,15/03/2012,Patient Travel - Fixed Recharg,Specialist Services 1,Dhl (Former Excel),2401340,"74,006.65",Optional requirement only
Department of Health,Imperial College Healthcare NHS Trust,15/03/2012,Patient Travel - Fixed Recharg,Specialist Services 2,Dhl (Former Excel),2401340,"390,585.52",Optional requirement only
Department of Health,Imperial College Healthcare NHS Trust,15/03/2012,Patient Travel - Fixed Recharg,Surgery And Cancer,Dhl (Former Excel),2401340,"41,717.66",Optional requirement only
Department of Health,Imperial College Healthcare NHS Trust,15/03/2012,Medical Equipment,Specialist Services 1,Draeger Medical Uk Ltd,2393986,"35,565.23",Optional requirement only
Department of Health,Imperial College Healthcare NHS Trust,27/03/2012,R&D Techs,Medical Director - Fr Centres,Ealing Hospital Nhs Trust,2404741,"86,320.25",Optional requirement only
Department of Health,Imperial College Healthcare NHS Trust,27/03/2012,R&D Techs,Medical Director - Fr Centres,Ealing Hospital Nhs Trust,2404743,"86,320.25",Optional requirement only
Department of Health,Imperial College Healthcare NHS Trust,27/03/2012,R&D Techs,Medical Director - Fr Centres,Ealing Hospital Nhs Trust,2404745,"86,320.25",Optional requirement only
Department of Health,Imperial College Healthcare NHS Trust,27/03/2012,R&D Techs,Medical Director - Fr Centres,Ealing Hospital Nhs Trust,2404747,"86,320.25",Optional requirement only
Department of Health,Imperial College Healthcare NHS Trust,27/03/2012,Sundries - Non-Disposable,Medical Director - Fr Centres,Ealing Hospital Nhs Trust,2404741,"38,979.75",Optional requirement only
Department of Health,Imperial College Healthcare NHS Trust,27/03/2012,Sundries - Non-Disposable,Medical Director - Fr Centres,Ealing Hospital Nhs Trust,2404743,"38,979.75",Optional requirement only
Department of Health,Imperial College Healthcare NHS Trust,27/03/2012,Sundries - Non-Disposable,Medical Director - Fr Centres,Ealing Hospital Nhs Trust,2404745,"38,979.75",Optional requirement only
Department of Health,Imperial College Healthcare NHS Trust,27/03/2012,Sundries - Non-Disposable,Medical Director - Fr Centres,Ealing Hospital Nhs Trust,2404747,"38,979.75",Optional requirement only
Department of Health,Imperial College Healthcare NHS Trust,01/03/2012,Consultancy Services,Dir Of Chief Exec,Ernst And Young,2379027,"258,000.00",Optional requirement only
Department of Health,Imperial College Healthcare NHS Trust,06/03/2012,Jac - Stock,Stock,Gilead Sciences Ltd,2387087,"99,896.83",Optional requirement only
Department of Health,Imperial College Healthcare NHS Trust,21/03/2012,Jac - Stock,Stock,Gilead Sciences Ltd,2399976,"59,212.80",Optional requirement only
Department of Health,Imperial College Healthcare NHS Trust,23/03/2012,Jac - Stock,Stock,Gilead Sciences Ltd,2399971,"99,896.83",Optional requirement only
Department of Health,Imperial College Healthcare NHS Trust,28/03/2012,Jac - Stock,Stock,Gilead Sciences Ltd,2399160,"59,212.80",Optional requirement only
Department of Health,Imperial College Healthcare NHS Trust,31/03/2012,Jac - Stock,Stock,Gilead Sciences Ltd,2409874,"99,896.83",Optional requirement only
Department of Health,Imperial College Healthcare NHS Trust,31/03/2012,Jac - Stock,Stock,Gilead Sciences Ltd,2412076,"59,212.80",Optional requirement only
Department of Health,Imperial College Healthcare NHS Trust,06/03/2012,Buildings-Additions-Purchased,Capital Summary,Gray & Dungate Ltd,2373422,"39,264.67",Optional requirement only
Department of Health,Imperial College Healthcare NHS Trust,13/03/2012,Waste Disposal,Estates Directorate,Grundon Waste Management Ltd,2398823,"34,874.76",Optional requirement only
Department of Health,Imperial College Healthcare NHS Trust,28/03/2012,Waste Disposal,Estates Directorate,Grundon Waste Management Ltd,2411893,"33,615.30",Optional requirement only
Department of Health,Imperial College Healthcare NHS Trust,06/03/2012,Miscellaneous Items,Specialist Services 2,Hayes Cottage Renal Unit Ltd,2388717,"56,400.00",Optional requirement only
Department of Health,Imperial College Healthcare NHS Trust,21/03/2012,Nurse Agency,Medicine Cpg,Health Protection Agency,2403032,"50,980.00",Optional requirement only
Department of Health,Imperial College Healthcare NHS Trust,28/03/2012,Drugs Other Authorities,Clin & Investigative Sciences,Healthcare At Home Ltd,2407557,"327,107.17",Optional requirement only
Department of Health,Imperial College Healthcare NHS Trust,13/03/2012,Pbr Excluded Drugs,Specialist Services 2,Healthcare At Home Ltd,2398526,"29,310.24",Optional requirement only
Department of Health,Imperial College Healthcare NHS Trust,13/03/2012,Pbr Excluded Drugs,Specialist Services 2,Healthcare At Home Ltd,2398527,"49,166.80",Optional requirement only
Department of Health,Imperial College Healthcare NHS Trust,13/03/2012,Pbr Excluded Drugs,Specialist Services 2,Healthcare At Home Ltd,2398528,"29,625.00",Optional requirement only
Department of Health,Imperial College Healthcare NHS Trust,13/03/2012,Pbr Excluded Drugs,Specialist Services 2,Healthcare At Home Ltd,2398529,"130,357.36",Optional requirement only
Department of Health,Imperial College Healthcare NHS Trust,21/03/2012,Pbr Excluded Drugs,Specialist Services 2,Healthcare At Home Ltd,2393404,"27,723.56",Optional requirement only
Department of Health,Imperial College Healthcare NHS Trust,21/03/2012,Pbr Excluded Drugs,Specialist Services 2,Healthcare At Home Ltd,2393405,"34,984.32",Optional requirement only
Department of Health,Imperial College Healthcare NHS Trust,21/03/2012,Pbr Excluded Drugs,Specialist Services 2,Healthcare At Home Ltd,2393406,"55,867.44",Optional requirement only
Department of Health,Imperial College Healthcare NHS Trust,21/03/2012,Pbr Excluded Drugs,Specialist Services 2,Healthcare At Home Ltd,2406291,"173,768.15",Optional requirement only
Department of Health,Imperial College Healthcare NHS Trust,21/03/2012,Pbr Excluded Drugs,Specialist Services 2,Healthcare At Home Ltd,2406293,"47,241.60",Optional requirement only
Department of Health,Imperial College Healthcare NHS Trust,23/03/2012,Pbr Excluded Drugs,Specialist Services 2,Healthcare At Home Ltd,2398531,"45,677.04",Optional requirement only
Department of Health,Imperial College Healthcare NHS Trust,23/03/2012,Pbr Excluded Drugs,Specialist Services 2,Healthcare At Home Ltd,2398532,"79,145.54",Optional requirement only
Department of Health,Imperial College Healthcare NHS Trust,15/03/2012,Buildings-Additions-Purchased,Capital Summary,High Voltage Maintenance Services Ltd,2397613,"37,439.72",Optional requirement only
Department of Health,Imperial College Healthcare NHS Trust,01/03/2012,Management Services,Information & Comms Technology,Hornet It Limited,2374576,"32,760.00",Optional requirement only
Department of Health,Imperial College Healthcare NHS Trust,01/03/2012,Management Services,Infection Control Directorate,Huntleigh Healthcare Ltd,2366307,"1,038,450.59",Optional requirement only
Department of Health,Imperial College Healthcare NHS Trust,29/03/2012,Cleaning Catering & Portering,Estates Directorate,I S S Mediclean Ltd,2413535,"17,184,647.47",Optional requirement only
Department of Health,Imperial College Healthcare NHS Trust,21/03/2012,It -A+E Department,Information & Comms Technology,Iam Cloud Ltd,2393502,"38,400.00",Optional requirement only
Department of Health,Imperial College Healthcare NHS Trust,13/03/2012,Maintenance - Contract,Infection Control Directorate,Icnet Ltd,2398270,"55,396.36",Optional requirement only
Department of Health,Imperial College Healthcare NHS Trust,06/03/2012,Jac - Stock,Stock,Idis Limited,2387143,"49,176.25",Optional requirement only
Department of Health,Imperial College Healthcare NHS Trust,21/03/2012,Consultants - Recharge In,Clin & Investigative Sciences,Imperial College,2403643,"74,780.11",Optional requirement only
Department of Health,Imperial College Healthcare NHS Trust,21/03/2012,Distinction Awards - Cea Natnl,Clin & Investigative Sciences,Imperial College,2403644,"30,849.61",Optional requirement only
Department of Health,Imperial College Healthcare NHS Trust,21/03/2012,Pp - Inpatient,Clin & Investigative Sciences,Imperial College,2140712,"114,751.56",Optional requirement only
Department of Health,Imperial College Healthcare NHS Trust,28/03/2012,Library,Dir Of Education,Imperial College,2409691,"25,116.50",Optional requirement only
Department of Health,Imperial College Healthcare NHS Trust,28/03/2012,Library,Dir Of Education,Imperial College,2409694,"67,015.00",Optional requirement only
Department of Health,Imperial College Healthcare NHS Trust,08/03/2012,Imperial College - Nursing,Medical Director - Fr Centres,Imperial College,2059004,"45,500.00",Optional requirement only
Department of Health,Imperial College Healthcare NHS Trust,13/03/2012,R&D Techs,Medical Director - Fr Centres,Imperial College,2380604,"25,569.01",Optional requirement only
Department of Health,Imperial College Healthcare NHS Trust,13/03/2012,R&D Techs,Medical Director - Fr Centres,Imperial College,2398739,"41,467.13",Optional requirement only
Department of Health,Imperial College Healthcare NHS Trust,13/03/2012,R&D Techs,Medical Director - Fr Centres,Imperial College,2398817,"38,851.32",Optional requirement only
Department of Health,Imperial College Healthcare NHS Trust,13/03/2012,R&D Techs,Medical Director - Fr Centres,Imperial College,2398824,"27,937.05",Optional requirement only
Department of Health,Imperial College Healthcare NHS Trust,13/03/2012,R&D Techs,Medical Director - Fr Centres,Imperial College,2398875,"25,746.00",Optional requirement only
Department of Health,Imperial College Healthcare NHS Trust,13/03/2012,R&D Techs,Medical Director - Fr Centres,Imperial College,2398886,"25,649.25",Optional requirement only
Department of Health,Imperial College Healthcare NHS Trust,13/03/2012,R&D Techs,Medical Director - Fr Centres,Imperial College,2398887,"33,832.67",Optional requirement only
Department of Health,Imperial College Healthcare NHS Trust,13/03/2012,R&D Techs,Medical Director - Fr Centres,Imperial College,2398889,"85,294.44",Optional requirement only
Department of Health,Imperial College Healthcare NHS Trust,13/03/2012,Sundries - Non-Disposable,Medical Director - Fr Centres,Imperial College,2156085,"80,230.00",Optional requirement only
Department of Health,Imperial College Healthcare NHS Trust,13/03/2012,Sundries - Non-Disposable,Medical Director - Fr Centres,Imperial College,2156088,"80,229.00",Optional requirement only
Department of Health,Imperial College Healthcare NHS Trust,13/03/2012,Sundries - Non-Disposable,Medical Director - Fr Centres,Imperial College,2156099,"80,230.00",Optional requirement only
Department of Health,Imperial College Healthcare NHS Trust,13/03/2012,Sundries - Non-Disposable,Medical Director - Fr Centres,Imperial College,2218284,"112,102.00",Optional requirement only
Department of Health,Imperial College Healthcare NHS Trust,13/03/2012,Sundries - Non-Disposable,Medical Director - Fr Centres,Imperial College,2224417,"75,737.00",Optional requirement only
Department of Health,Imperial College Healthcare NHS Trust,13/03/2012,Sundries - Non-Disposable,Medical Director - Fr Centres,Imperial College,2253069,"153,000.00",Optional requirement only
Department of Health,Imperial College Healthcare NHS Trust,13/03/2012,Sundries - Non-Disposable,Medical Director - Fr Centres,Imperial College,2277584,"37,936.90",Optional requirement only
Department of Health,Imperial College Healthcare NHS Trust,13/03/2012,Sundries - Non-Disposable,Medical Director - Fr Centres,Imperial College,2277587,"72,684.00",Optional requirement only
Department of Health,Imperial College Healthcare NHS Trust,13/03/2012,Sundries - Non-Disposable,Medical Director - Fr Centres,Imperial College,2338248,"36,342.00",Optional requirement only
Department of Health,Imperial College Healthcare NHS Trust,13/03/2012,Sundries - Non-Disposable,Medical Director - Fr Centres,Imperial College,2398741,"65,898.90",Optional requirement only
Department of Health,Imperial College Healthcare NHS Trust,13/03/2012,Sundries - Non-Disposable,Medical Director - Fr Centres,Imperial College,2398742,"34,525.73",Optional requirement only
Department of Health,Imperial College Healthcare NHS Trust,13/03/2012,Sundries - Non-Disposable,Medical Director - Fr Centres,Imperial College,2398746,"194,607.11",Optional requirement only
Department of Health,Imperial College Healthcare NHS Trust,13/03/2012,Sundries - Non-Disposable,Medical Director - Fr Centres,Imperial College,2398786,"55,350.00",Optional requirement only
Department of Health,Imperial College Healthcare NHS Trust,13/03/2012,Sundries - Non-Disposable,Medical Director - Fr Centres,Imperial College,2398833,"112,102.00",Optional requirement only
Department of Health,Imperial College Healthcare NHS Trust,21/03/2012,R&D Techs,Medical Director - Fr Centres,Imperial College,2265915,"54,000.00",Optional requirement only
Department of Health,Imperial College Healthcare NHS Trust,21/03/2012,R&D Techs,Medical Director - Fr Centres,Imperial College,2265916,"38,500.00",Optional requirement only
Department of Health,Imperial College Healthcare NHS Trust,21/03/2012,R&D Techs,Medical Director - Fr Centres,Imperial College,2265937,"38,500.00",Optional requirement only
Department of Health,Imperial College Healthcare NHS Trust,21/03/2012,R&D Techs,Medical Director - Fr Centres,Imperial College,2265969,"39,000.00",Optional requirement only
Department of Health,Imperial College Healthcare NHS Trust,21/03/2012,R&D Techs,Medical Director - Fr Centres,Imperial College,2403135,"30,354.81",Optional requirement only
Department of Health,Imperial College Healthcare NHS Trust,21/03/2012,R&D Techs,Medical Director - Fr Centres,Imperial College,2403142,"26,353.21",Optional requirement only
Department of Health,Imperial College Healthcare NHS Trust,21/03/2012,R&D Techs,Medical Director - Fr Centres,Imperial College,2403143,"26,351.14",Optional requirement only
Department of Health,Imperial College Healthcare NHS Trust,21/03/2012,R&D Techs,Medical Director - Fr Centres,Imperial College,2403146,"76,667.99",Optional requirement only
Department of Health,Imperial College Healthcare NHS Trust,21/03/2012,R&D Techs,Medical Director - Fr Centres,Imperial College,2406135,"287,477.97",Optional requirement only
Department of Health,Imperial College Healthcare NHS Trust,21/03/2012,R&D Techs,Medical Director - Fr Centres,Imperial College,2406137,"115,168.94",Optional requirement only
Department of Health,Imperial College Healthcare NHS Trust,21/03/2012,Sundries - Non-Disposable,Medical Director - Fr Centres,Imperial College,2406135,"60,530.25",Optional requirement only
Department of Health,Imperial College Healthcare NHS Trust,06/03/2012,Nurse Agency,Medicine Cpg,Imperial College,2393875,"103,077.00",Optional requirement only
Department of Health,Imperial College Healthcare NHS Trust,15/03/2012,Consultants - Recharge In,Medicine Cpg,Imperial College,2400281,"71,452.79",Optional requirement only
Department of Health,Imperial College Healthcare NHS Trust,15/03/2012,Distinction Awards - Cea Natnl,Medicine Cpg,Imperial College,2400282,"48,364.27",Optional requirement only
Department of Health,Imperial College Healthcare NHS Trust,15/03/2012,Nurse Agency,Medicine Cpg,Imperial College,2338246,"39,966.00",Optional requirement only
Department of Health,Imperial College Healthcare NHS Trust,15/03/2012,Nurse Agency,Medicine Cpg,Imperial College,2399770,"30,360.00",Optional requirement only
Department of Health,Imperial College Healthcare NHS Trust,28/03/2012,Management Services,Smh Funded Pilots,Imperial College,2409110,"134,682.00",Optional requirement only
Department of Health,Imperial College Healthcare NHS Trust,13/03/2012,Distinction Awards - Discretio,Specialist Services 2,Imperial College,2398306,"57,592.04",Optional requirement only
Department of Health,Imperial College Healthcare NHS Trust,13/03/2012,Distinction Awards - Discretio,Specialist Services 2,Imperial College,2398307,"50,672.13",Optional requirement only
Department of Health,Imperial College Healthcare NHS Trust,13/03/2012,Distinction Awards - Discretio,Specialist Services 2,Imperial College,2398308,"57,622.94",Optional requirement only
Department of Health,Imperial College Healthcare NHS Trust,13/03/2012,Distinction Awards - Discretio,Specialist Services 2,Imperial College,2398309,"50,675.13",Optional requirement only
Department of Health,Imperial College Healthcare NHS Trust,13/03/2012,Imperial College - Medical,Specialist Services 2,Imperial College,2398306,"46,268.05",Optional requirement only
Department of Health,Imperial College Healthcare NHS Trust,13/03/2012,Imperial College - Medical,Specialist Services 2,Imperial College,2398308,"36,193.04",Optional requirement only
Department of Health,Imperial College Healthcare NHS Trust,21/03/2012,Distinction Awards - Discretio,Specialist Services 2,Imperial College,2218794,"45,535.32",Optional requirement only
Department of Health,Imperial College Healthcare NHS Trust,21/03/2012,Distinction Awards - Discretio,Specialist Services 2,Imperial College,2405289,"54,486.93",Optional requirement only
Department of Health,Imperial College Healthcare NHS Trust,21/03/2012,Distinction Awards - Discretio,Specialist Services 2,Imperial College,2405290,"58,033.28",Optional requirement only
Department of Health,Imperial College Healthcare NHS Trust,21/03/2012,Imperial College - Medical,Specialist Services 2,Imperial College,2405290,"38,707.40",Optional requirement only
Department of Health,Imperial College Healthcare NHS Trust,21/03/2012,Medical Budget,Specialist Services 2,Imperial College,2403488,"87,558.40",Optional requirement only
Department of Health,Imperial College Healthcare NHS Trust,01/03/2012,Imperial College - Medical,Surgery And Cancer,Imperial College,2392625,"43,398.36",Optional requirement only
Department of Health,Imperial College Healthcare NHS Trust,01/03/2012,Imperial College - Medical,Surgery And Cancer,Imperial College,2392626,"50,818.57",Optional requirement only
Department of Health,Imperial College Healthcare NHS Trust,01/03/2012,Imperial College - Medical,Surgery And Cancer,Imperial College,2392627,"112,317.56",Optional requirement only
Department of Health,Imperial College Healthcare NHS Trust,01/03/2012,Imperial College - Medical,Surgery And Cancer,Imperial College,2392813,"50,818.57",Optional requirement only
Department of Health,Imperial College Healthcare NHS Trust,01/03/2012,Imperial College - Medical,Surgery And Cancer,Imperial College,2392814,"110,116.80",Optional requirement only
Department of Health,Imperial College Healthcare NHS Trust,28/03/2012,Imperial College - Medical,Surgery And Cancer,Imperial College,2409105,"50,939.14",Optional requirement only
Department of Health,Imperial College Healthcare NHS Trust,28/03/2012,Imperial College - Medical,Surgery And Cancer,Imperial College,2409106,"99,651.43",Optional requirement only
Department of Health,Imperial College Healthcare NHS Trust,21/03/2012,A&C Band 6,Womens And Childrens Direct'E,Imperial College,2140699,"27,456.08",Optional requirement only
Department of Health,Imperial College Healthcare NHS Trust,28/03/2012,Distinction Awards - Cea Natnl,Womens And Childrens Direct'E,Imperial College,2411743,"35,898.92",Optional requirement only
Department of Health,Imperial College Healthcare NHS Trust,28/03/2012,Distinction Awards - Discretio,Womens And Childrens Direct'E,Imperial College,2411743,"30,061.18",Optional requirement only
Department of Health,Imperial College Healthcare NHS Trust,28/03/2012,Specialist Registrar,Womens And Childrens Direct'E,Imperial College,2411743,"32,128.43",Optional requirement only
Department of Health,Imperial College Healthcare NHS Trust,23/03/2012,Management Services,Specialist Services 1,Inhealth Sterile Services Ltd,2396268,"211,240.00",Optional requirement only
Department of Health,Imperial College Healthcare NHS Trust,23/03/2012,Conferences/Courses,Dir Of Education,Inventive Medical Ltd,2403429,"67,920.00",Optional requirement only
Department of Health,Imperial College Healthcare NHS Trust,15/03/2012,Jac - Stock,Stock,Janssen-Cilag Ltd,2396603,"45,498.24",Optional requirement only
Department of Health,Imperial College Healthcare NHS Trust,28/03/2012,P & M-Additions-Purchased,Capital Summary,Keymed (Med & Ind Equip) Ltd,2330177,"73,049.04",Optional requirement only
Department of Health,Imperial College Healthcare NHS Trust,13/03/2012,Childcare Voucher (Kids Unltd),Childcare,Kids Unlimited Group Ltd,2398791,"69,875.57",Optional requirement only
Department of Health,Imperial College Healthcare NHS Trust,06/03/2012,Buildings-Additions-Purchased,Capital Summary,Killby & Gayford Group,2393512,"376,142.40",Optional requirement only
Department of Health,Imperial College Healthcare NHS Trust,20/03/2012,Buildings-Additions-Purchased,Capital Summary,Killby & Gayford Group,2401749,"269,953.20",Optional requirement only
Department of Health,Imperial College Healthcare NHS Trust,20/03/2012,Buildings-Additions-Purchased,Capital Summary,Killby & Gayford Group,2404096,"376,142.40",Optional requirement only
Department of Health,Imperial College Healthcare NHS Trust,21/03/2012,Rent,Ravenscourt Directorate,Les Geonnais Limited,2405965,"1,066,750.00",Optional requirement only
Department of Health,Imperial College Healthcare NHS Trust,21/03/2012,Buildings-Additions-Purchased,Capital Summary,Logan Construction (Se) Ltd,2406058,"227,845.20",Optional requirement only
Department of Health,Imperial College Healthcare NHS Trust,13/03/2012,Lcw - Out Of Hours Service,Public Health & Primary Care,London Central & West Unscheduled Care Collab,2398158,"85,130.32",Optional requirement only
Department of Health,Imperial College Healthcare NHS Trust,13/03/2012,Pfh Gp Sessional Doctors,Public Health & Primary Care,London Central & West Unscheduled Care Collab,2398158,"179,507.03",Optional requirement only
Department of Health,Imperial College Healthcare NHS Trust,13/03/2012,Pfh Gp Sessional Doctors,Public Health & Primary Care,London Central & West Unscheduled Care Collab,2398283,"30,993.59",Optional requirement only
Department of Health,Imperial College Healthcare NHS Trust,13/03/2012,Pfh Gp Sessional Doctors,Public Health & Primary Care,London Central & West Unscheduled Care Collab,2398284,"30,993.59",Optional requirement only
Department of Health,Imperial College Healthcare NHS Trust,13/03/2012,Pfh Gp Sessional Doctors,Public Health & Primary Care,London Central & West Unscheduled Care Collab,2398288,"27,829.01",Optional requirement only
Department of Health,Imperial College Healthcare NHS Trust,13/03/2012,Pfh Gp Sessional Doctors,Public Health & Primary Care,London Central & West Unscheduled Care Collab,2398300,"26,877.31",Optional requirement only
Department of Health,Imperial College Healthcare NHS Trust,28/03/2012,Services Provided,Specialist Services 2,London Perfusion Science,2401343,"32,912.50",Optional requirement only
Department of Health,Imperial College Healthcare NHS Trust,15/03/2012,Buildings-Additions-Purchased,Capital Summary,Longcross Group Ltd,2401326,"125,789.00",Optional requirement only
Department of Health,Imperial College Healthcare NHS Trust,21/03/2012,Buildings-Additions-Purchased,Capital Summary,Longcross Group Ltd,2405341,"48,529.76",Optional requirement only
Department of Health,Imperial College Healthcare NHS Trust,21/03/2012,Buildings-Additions-Purchased,Capital Summary,Longcross Group Ltd,2406067,"34,677.12",Optional requirement only
Department of Health,Imperial College Healthcare NHS Trust,28/03/2012,Buildings-Additions-Purchased,Capital Summary,Longcross Group Ltd,2409528,"157,616.68",Optional requirement only
Department of Health,Imperial College Healthcare NHS Trust,28/03/2012,Buildings-Additions-Purchased,Capital Summary,Lowe Build Ltd,2411916,"37,460.40",Optional requirement only
Department of Health,Imperial College Healthcare NHS Trust,13/03/2012,Med Bank,Medicine Cpg,Medacs Healthcare Services Plc,2398501,"32,065.84",Optional requirement only
Department of Health,Imperial College Healthcare NHS Trust,01/03/2012,Hh Pharmacy Stock,Stock,Medco Health Solutions Ltd,2390508,"33,860.00",Optional requirement only
Department of Health,Imperial College Healthcare NHS Trust,01/03/2012,Hh Pharmacy Stock,Stock,Medco Health Solutions Ltd,2391944,"28,159.77",Optional requirement only
Department of Health,Imperial College Healthcare NHS Trust,01/03/2012,Hh Pharmacy Stock,Stock,Medco Health Solutions Ltd,2391946,"37,488.33",Optional requirement only
Department of Health,Imperial College Healthcare NHS Trust,06/03/2012,Hh Pharmacy Stock,Stock,Medco Health Solutions Ltd,2394826,"63,423.67",Optional requirement only
Department of Health,Imperial College Healthcare NHS Trust,06/03/2012,Hh Pharmacy Stock,Stock,Medco Health Solutions Ltd,2394828,"105,261.28",Optional requirement only
Department of Health,Imperial College Healthcare NHS Trust,06/03/2012,Hh Pharmacy Stock,Stock,Medco Health Solutions Ltd,2394829,"89,788.56",Optional requirement only
Department of Health,Imperial College Healthcare NHS Trust,13/03/2012,Hh Pharmacy Stock,Stock,Medco Health Solutions Ltd,2398036,"29,529.92",Optional requirement only
Department of Health,Imperial College Healthcare NHS Trust,21/03/2012,Hh Pharmacy Stock,Stock,Medco Health Solutions Ltd,2402400,"29,976.20",Optional requirement only
Department of Health,Imperial College Healthcare NHS Trust,21/03/2012,Hh Pharmacy Stock,Stock,Medco Health Solutions Ltd,2404444,"34,251.67",Optional requirement only
Department of Health,Imperial College Healthcare NHS Trust,21/03/2012,Hh Pharmacy Stock,Stock,Medco Health Solutions Ltd,2404446,"28,655.68",Optional requirement only
Department of Health,Imperial College Healthcare NHS Trust,21/03/2012,Hh Pharmacy Stock,Stock,Medco Health Solutions Ltd,2404448,"31,856.50",Optional requirement only
Department of Health,Imperial College Healthcare NHS Trust,21/03/2012,Sundries - Non-Disposable,Medical Director - Fr Centres,Medical Research Council,2219781,"30,750.00",Optional requirement only
Department of Health,Imperial College Healthcare NHS Trust,28/03/2012,Laundry - Disposable Drapes,Estates Directorate,Medline Industries Limited,2403115,"37,484.33",Optional requirement only
Department of Health,Imperial College Healthcare NHS Trust,21/03/2012,Defibrillators,Specialist Services 2,Medtronic Ltd,2397699,"34,080.00",Optional requirement only
Department of Health,Imperial College Healthcare NHS Trust,21/03/2012,Pacemakers,Specialist Services 2,Medtronic Ltd,2388806,"36,000.00",Optional requirement only
Department of Health,Imperial College Healthcare NHS Trust,13/03/2012,Blood,Clin & Investigative Sciences,Nhs Blood And Transplant,2389045,"113,850.35",Optional requirement only
Department of Health,Imperial College Healthcare NHS Trust,15/03/2012,Blood,Clin & Investigative Sciences,Nhs Blood And Transplant,2389046,"377,254.96",Optional requirement only
Department of Health,Imperial College Healthcare NHS Trust,15/03/2012,Blood Transfusion,Clin & Investigative Sciences,Nhs Blood And Transplant,2389047,"157,579.28",Optional requirement only
Department of Health,Imperial College Healthcare NHS Trust,08/03/2012,Fp10,Clin & Investigative Sciences,Nhs Business Services Authority,2388925,"90,151.87",Optional requirement only
Department of Health,Imperial College Healthcare NHS Trust,21/03/2012,Miscellaneous Items,Specialist Services 2,Nhs Kensington & Chelsea Pct,2392790,"55,560.41",Optional requirement only
Department of Health,Imperial College Healthcare NHS Trust,21/03/2012,Miscellaneous Items,Specialist Services 2,Nhs Kensington & Chelsea Pct,2402866,"55,560.41",Optional requirement only
Department of Health,Imperial College Healthcare NHS Trust,13/03/2012,Supplies Issues Recharges,Stock,Nhs Supply Chain,2398517,"101,357.28",Optional requirement only
Department of Health,Imperial College Healthcare NHS Trust,13/03/2012,Supplies Issues Recharges,Stock,Nhs Supply Chain,2398518,"108,313.46",Optional requirement only
Department of Health,Imperial College Healthcare NHS Trust,13/03/2012,Supplies Issues Recharges,Stock,Nhs Supply Chain,2398519,"90,531.01",Optional requirement only
Department of Health,Imperial College Healthcare NHS Trust,15/03/2012,Supplies Issues Recharges,Stock,Nhs Supply Chain,2398514,"81,621.69",Optional requirement only
Department of Health,Imperial College Healthcare NHS Trust,15/03/2012,Supplies Issues Recharges,Stock,Nhs Supply Chain,2398515,"82,948.00",Optional requirement only
Department of Health,Imperial College Healthcare NHS Trust,15/03/2012,Supplies Issues Recharges,Stock,Nhs Supply Chain,2398516,"98,280.92",Optional requirement only
Department of Health,Imperial College Healthcare NHS Trust,21/03/2012,Supplies Issues Recharges,Stock,Nhs Supply Chain,2405305,"80,210.25",Optional requirement only
Department of Health,Imperial College Healthcare NHS Trust,21/03/2012,Supplies Issues Recharges,Stock,Nhs Supply Chain,2405309,"78,352.75",Optional requirement only
Department of Health,Imperial College Healthcare NHS Trust,21/03/2012,Supplies Issues Recharges,Stock,Nhs Supply Chain,2405312,"122,188.09",Optional requirement only
Department of Health,Imperial College Healthcare NHS Trust,21/03/2012,Supplies Issues Recharges,Stock,Nhs Supply Chain,2405314,"99,435.90",Optional requirement only
Department of Health,Imperial College Healthcare NHS Trust,21/03/2012,Supplies Issues Recharges,Stock,Nhs Supply Chain,2405315,"83,610.50",Optional requirement only
Department of Health,Imperial College Healthcare NHS Trust,21/03/2012,Supplies Issues Recharges,Stock,Nhs Supply Chain,2405316,"98,091.28",Optional requirement only
Department of Health,Imperial College Healthcare NHS Trust,21/03/2012,Medeq Planned Maint &Ins Contr,Specialist Services 2,Nhs Supply Chain,2404052,"102,929.77",Optional requirement only
Department of Health,Imperial College Healthcare NHS Trust,21/03/2012,Medeq Planned Maint &Ins Contr,Surgery And Cancer,Nhs Supply Chain,2406671,"47,835.37",Optional requirement only
Department of Health,Imperial College Healthcare NHS Trust,21/03/2012,Jac - Stock,Stock,Novartis Pharmaceutical (Uk) Ltd,2399902,"67,685.90",Optional requirement only
Department of Health,Imperial College Healthcare NHS Trust,06/03/2012,Interpreting Services,Nursing & Ops Directorate,Pearl Linguistics Ltd,2380514,"56,862.11",Optional requirement only
Department of Health,Imperial College Healthcare NHS Trust,21/03/2012,Purchasing Eprocurement Dump,Clin & Investigative Sciences,Phadia Ltd,2393705,"36,685.50",Optional requirement only
Department of Health,Imperial College Healthcare NHS Trust,28/03/2012,P & M-Additions-Purchased,Capital Summary,Philips Healthcare,2403491,"72,510.06",Optional requirement only
Department of Health,Imperial College Healthcare NHS Trust,23/03/2012,Nhsp Weekly Bank,Agency,Pulse Healthcare Group,2407945,"45,300.00",Optional requirement only
Department of Health,Imperial College Healthcare NHS Trust,06/03/2012,Buildings-Additions-Purchased,Capital Summary,Quantech Environmental Limited,2386952,"65,030.98",Optional requirement only
Department of Health,Imperial College Healthcare NHS Trust,13/03/2012,Agency Ptb Band 5+,Clin & Investigative Sciences,Reed,2398463,"45,545.59",Optional requirement only
Department of Health,Imperial College Healthcare NHS Trust,13/03/2012,Agency Ptb Band 5+,Clin & Investigative Sciences,Reed,2398464,"37,919.31",Optional requirement only
Department of Health,Imperial College Healthcare NHS Trust,13/03/2012,Agency Ptb Band 5+,Clin & Investigative Sciences,Reed,2398465,"40,613.07",Optional requirement only
Department of Health,Imperial College Healthcare NHS Trust,13/03/2012,Agency Ptb Band 5+,Clin & Investigative Sciences,Reed,2398466,"41,673.91",Optional requirement only
Department of Health,Imperial College Healthcare NHS Trust,23/03/2012,Agency Ptb Band 5+,Clin & Investigative Sciences,Reed,2406352,"35,483.16",Optional requirement only
Department of Health,Imperial College Healthcare NHS Trust,13/03/2012,Agency Ptb Band 5+,Medicine Cpg,Reed,2398463,"44,644.94",Optional requirement only
Department of Health,Imperial College Healthcare NHS Trust,08/03/2012,Chx Pharmacy Stock,Stock,Roche Products Ltd,2384400,"51,332.40",Optional requirement only
Department of Health,Imperial College Healthcare NHS Trust,23/03/2012,Chx Pharmacy Stock,Stock,Roche Products Ltd,2406150,"51,332.40",Optional requirement only
Department of Health,Imperial College Healthcare NHS Trust,28/03/2012,Chx Pharmacy Stock,Stock,Roche Products Ltd,2411951,"51,911.14",Optional requirement only
Department of Health,Imperial College Healthcare NHS Trust,31/03/2012,Chx Pharmacy Stock,Stock,Roche Products Ltd,2408234,"51,332.40",Optional requirement only
Department of Health,Imperial College Healthcare NHS Trust,01/03/2012,Buildings-Additions-Purchased,Capital Summary,Russell Cawberry Ltd,2385517,"105,524.40",Optional requirement only
Department of Health,Imperial College Healthcare NHS Trust,15/03/2012,Consultancy Services,Dir Of Chief Exec,Scenario One Ltd,2398541,"50,400.00",Optional requirement only
Department of Health,Imperial College Healthcare NHS Trust,28/03/2012,Isotopes,Clin & Investigative Sciences,Siemens Healthcare Plc,2411989,"31,629.60",Optional requirement only
Department of Health,Imperial College Healthcare NHS Trust,21/03/2012,Travel - Board & Subsistence,Finance Directorate,South West Strategic Health Authority,2396485,"37,772.16",Optional requirement only
Department of Health,Imperial College Healthcare NHS Trust,15/03/2012,Electricity,Estates Directorate,Southern Electric,2401680,"99,371.06",Optional requirement only
Department of Health,Imperial College Healthcare NHS Trust,15/03/2012,Electricity,Estates Directorate,Southern Electric,2401688,"50,980.82",Optional requirement only
Department of Health,Imperial College Healthcare NHS Trust,15/03/2012,Electricity,Estates Directorate,Southern Electric,2401690,"41,630.74",Optional requirement only
Department of Health,Imperial College Healthcare NHS Trust,15/03/2012,Electricity,Estates Directorate,Southern Electric,2401723,"80,081.63",Optional requirement only
Department of Health,Imperial College Healthcare NHS Trust,15/03/2012,Electricity,Estates Directorate,Southern Electric,2401753,"60,948.96",Optional requirement only
Department of Health,Imperial College Healthcare NHS Trust,15/03/2012,Electricity,Estates Directorate,Southern Electric,2401773,"32,579.96",Optional requirement only
Department of Health,Imperial College Healthcare NHS Trust,06/03/2012,Defibrillators,Specialist Services 2,St Jude Medical U K Limited,2394155,"63,000.00",Optional requirement only
Department of Health,Imperial College Healthcare NHS Trust,28/03/2012,Medical Equipment,Specialist Services 2,St Jude Medical U K Limited,2403420,"42,000.00",Optional requirement only
Department of Health,Imperial College Healthcare NHS Trust,31/03/2012,Defibrillators,Specialist Services 2,St Jude Medical U K Limited,2409654,"105,000.00",Optional requirement only
Department of Health,Imperial College Healthcare NHS Trust,01/03/2012,Linen Rental Contract,Estates Directorate,Synergy Health  Uk Ltd,2386277,"105,415.13",Optional requirement only
Department of Health,Imperial College Healthcare NHS Trust,01/03/2012,Stores Issues,Estates Directorate,Synergy Health  Uk Ltd,2386277,"40,539.41",Optional requirement only
Department of Health,Imperial College Healthcare NHS Trust,28/03/2012,Linen Rental Contract,Estates Directorate,Synergy Health  Uk Ltd,2411931,"107,900.72",Optional requirement only
Department of Health,Imperial College Healthcare NHS Trust,28/03/2012,Stores Issues,Estates Directorate,Synergy Health  Uk Ltd,2411931,"40,539.41",Optional requirement only
Department of Health,Imperial College Healthcare NHS Trust,23/03/2012,Rent,Estates Directorate,Thames Valley Charitable Housing,2407941,"36,732.74",Optional requirement only
Department of Health,Imperial College Healthcare NHS Trust,01/03/2012,Thames Valley Housing Assoc,Housing Deductions,Thames Valley Charitable Housing,2391359,"91,944.60",Optional requirement only
Department of Health,Imperial College Healthcare NHS Trust,28/03/2012,Thames Valley Housing Assoc,Housing Deductions,Thames Valley Charitable Housing,2412366,"92,510.41",Optional requirement only
Department of Health,Imperial College Healthcare NHS Trust,15/03/2012,Water Rates,Estates Directorate,Thames Water Utilities Limited,2401661,"42,795.74",Optional requirement only
Department of Health,Imperial College Healthcare NHS Trust,21/03/2012,Buildings-Add(Prof Fee)-Purch,Capital Summary,The Brunton Boobyer Partnership,2401329,"52,445.92",Optional requirement only
Department of Health,Imperial College Healthcare NHS Trust,08/03/2012,Buildings-Additions-Purchased,Capital Summary,The Richard Stephens Partnership,2395952,"34,567.68",Optional requirement only
Department of Health,Imperial College Healthcare NHS Trust,01/03/2012,Laundry - Contract,Estates Directorate,The Sunlight Service Group Ltd,2391920,"44,063.77",Optional requirement only
Department of Health,Imperial College Healthcare NHS Trust,23/03/2012,Laundry - Contract,Estates Directorate,The Sunlight Service Group Ltd,2405472,"45,594.05",Optional requirement only
Department of Health,Imperial College Healthcare NHS Trust,28/03/2012,Gas,Estates Directorate,Total Gas & Power Ltd,2410458,"83,483.57",Optional requirement only
Department of Health,Imperial College Healthcare NHS Trust,28/03/2012,Gas,Estates Directorate,Total Gas & Power Ltd,2410463,"72,489.21",Optional requirement only
Department of Health,Imperial College Healthcare NHS Trust,21/03/2012,It -Pharmacy,Information & Comms Technology,Ultima Business Solutions Ltd,2396042,"46,541.22",Optional requirement only
Department of Health,Imperial College Healthcare NHS Trust,15/03/2012,Management Services,Estates Directorate,Universal Safety Consultants Ltd,2400874,"35,955.00",Optional requirement only
Department of Health,Imperial College Healthcare NHS Trust,15/03/2012,Management Services,Estates Directorate,Universal Safety Consultants Ltd,2400876,"35,955.00",Optional requirement only
Department of Health,Imperial College Healthcare NHS Trust,21/03/2012,Patient Investigations - Nhs,Medicine Cpg,University Hospital Birmingham Nhs Foundation,2406469,"85,907.00",Optional requirement only
Department of Health,Imperial College Healthcare NHS Trust,28/03/2012,It Eqpt-Additions,Capital Summary,Varian Medical Systems Uk Ltd,2395874,"313,297.94",Optional requirement only
Department of Health,Imperial College Healthcare NHS Trust,13/03/2012,Miscellaneous Items,Specialist Services 2,West Hertfordshire Hospitals Nhs Trust,2373783,"28,978.00",Optional requirement only
Department of Health,Imperial College Healthcare NHS Trust,01/03/2012,Srv Recvd Nhs-Subcon Healtcare,Specialist Services 1,West London Mental Health Nhs Trust,2377870,"33,445.84",Optional requirement only
Department of Health,Imperial College Healthcare NHS Trust,21/03/2012,Srv Recvd Nhs-Subcon Healtcare,Specialist Services 1,West London Mental Health Nhs Trust,2398175,"33,445.84",Optional requirement only
Department of Health,Imperial College Healthcare NHS Trust,27/03/2012,Srv Recvd Nhs-Subcon Healtcare,Specialist Services 1,West London Mental Health Nhs Trust,2405327,"552,000.00",Optional requirement only
Department of Health,Imperial College Healthcare NHS Trust,13/03/2012,Miscellaneous Items,Specialist Services 2,West Middlesex University Hospital Nhs Trust,2158398,"138,180.00",Optional requirement only
Department of Health,Imperial College Healthcare NHS Trust,13/03/2012,Miscellaneous Items,Specialist Services 2,West Middlesex University Hospital Nhs Trust,2158399,"221,058.00",Optional requirement only
Department of Health,Imperial College Healthcare NHS Trust,15/03/2012,Jac - Stock,Stock,Whipps Cross University Hospital Nhs Trust,2396646,"46,800.00",Optional requirement only
,,,,,,Sum:,"39,727,693.05",
